fUSD/lending_fUSD_20240701
["ID","MTS","AMOUNT","RATE_DAILY","PERIOD"]
[330803238,1719810646705,-394.988599,0.00021264,2]
[330803239,1719810646716,-151.0,0.00021264,2]
[330803240,1719810646725,-151.0,0.00021264,2]
[330803241,1719810646734,-151.0,0.00021264,2]
[330803242,1719810646743,-151.0,0.00021264,2]
[330803243,1719810646753,-151.0,0.00021264,2]
[330803244,1719810646764,-151.0,0.00021264,2]
[330803245,1719810646773,-151.0,0.00021264,2]
[330803246,1719810646782,-151.0,0.00021264,2]
[330803247,1719810646790,-151.0,0.00021264,2]
[330803248,1719810646799,-416.705313,0.00021264,2]
[330803249,1719810646808,-151.0,0.00021264,2]
[330803250,1719810646818,-416.705313,0.00021264,2]
[330803251,1719810646827,-151.0,0.00021264,2]
[330803252,1719810646836,-215.50704,0.00021264,2]
[330803253,1719810646845,-168.992213,0.00021264,2]
[330803254,1719810646855,-168.992213,0.00021264,2]
[330803255,1719810646865,-151.0,0.00021264,2]
[330803256,1719810646875,-151.0,0.00021264,2]
[330803257,1719810646884,-170.82003261,0.00021272,2]
[330803258,1719810646894,-151.0,0.00021312,2]
[330803259,1719810646903,-152.66657847,0.00021316,2]
[330803260,1719810646912,-166.83869164,0.00021335,2]
[330803261,1719810646921,-512.29,0.00021369,2]
[330803262,1719810646930,-500.0,0.00021369,2]
[330803263,1719810646939,-5350.14802129,0.00021491,2]
[330803264,1719810646948,-156.4032567,0.00021496,2]
[330803265,1719810646962,-500.0,0.00021506,2]
[330803266,1719810646971,-356.73147333,0.00021525,2]
[330803267,1719810646980,-154.86627899,0.00021529,2]
[330803268,1719810646989,-170.82003261,0.00021538,2]
[330803269,1719810646998,-500.0,0.00021594,2]
[330803270,1719810647011,-2584.94135654,0.000216,2]
[330803271,1719810647019,-196.0,0.000216,3]
[330803272,1719810647035,-500.0,0.00021603,2]
[330803273,1719810647045,-500.0,0.00021611,2]
[330803274,1719810647054,-166.83869164,0.00021617,2]
[330803275,1719810647064,-154.86627899,0.00021618,2]
[330803276,1719810647073,-500.0,0.0002162,2]
[330803277,1719810647083,-500.0,0.00021629,2]
[330803278,1719810647092,-500.0,0.00021638,2]
[330803279,1719810647101,-155.43,0.00021644,2]
[330803280,1719810647110,-851.74,0.00021644,2]
[330803281,1719810647120,-479.5,0.00021644,2]
[330803282,1719810647130,-163.43,0.00021644,2]
[330803283,1719810647139,-164.090442,0.00021644,2]
[330803284,1719810647148,-500.0,0.00021647,2]
[330803285,1719810647157,-500.0,0.00021655,2]
[330803286,1719810647166,-500.0,0.00021664,2]
[330803287,1719810647176,-500.0,0.00021673,2]
[330803288,1719810647186,-500.0,0.00021682,2]
[330803289,1719810647195,-500.0,0.00021682,2]
[330803290,1719810647204,-500.0,0.00021691,2]
[330803291,1719810647213,-500.0,0.00021691,2]
[330803292,1719810647223,-500.0,0.00021699,2]
[330803293,1719810647232,-500.0,0.00021699,2]
[330803294,1719810647241,-150.0,0.00021702,2]
[330803295,1719810647250,-500.0,0.00021708,2]
[330803296,1719810647260,-500.0,0.00021708,2]
[330803297,1719810647270,-500.0,0.00021717,2]
[330803298,1719810647279,-500.0,0.00021717,2]
[330803299,1719810647289,-500.0,0.00021717,2]
[330803300,1719810647298,-5350.14802129,0.00021718,2]
[330803301,1719810647307,-500.0,0.00021725,2]
[330803302,1719810647316,-500.0,0.00021734,2]
[330803303,1719810647325,-500.0,0.00021743,2]
[330803304,1719810647334,-154.94398226,0.0002175,2]
[330803305,1719810647343,-1573.73584566,0.00021754,2]
[330803306,1719810647352,-152.66657847,0.00021796,2]
[330803307,1719810647362,-800.0,0.00021808,2]
[330803308,1719810647371,-800.0,0.00021808,2]
[330803309,1719810647380,-800.0,0.00021808,2]
[330803310,1719810647389,-800.0,0.00021808,2]
[330803311,1719810647399,-355.4237559,0.00021817,2]
[330803312,1719810647408,-151.0,0.00021859,2]
[330803313,1719810647417,-153.3118478,0.0002186,2]
[330803314,1719810647426,-365.6820984,0.00021875,2]
[330803315,1719810647435,-170.82003261,0.00021884,2]
[330803316,1719810647445,-365.6,0.000219,4]
[330803317,1719810647454,-153.3118478,0.00021904,2]
[330803318,1719810647463,-4282.19409529,0.00021917,5]
[330803319,1719810647472,-500.0,0.00021917,4]
[330803320,1719810647482,-501.01874845,0.00021917,4]
[330803321,1719810647491,-500.0,0.00021917,4]
[330803322,1719810647500,-500.0,0.00021917,4]
[330803323,1719810647510,-500.0,0.00021917,4]
[330803324,1719810647519,-500.47595795,0.00021917,4]
[330803325,1719810647529,-500.0,0.00021917,4]
[330803326,1719810647538,-500.0,0.00021917,4]
[330803327,1719810647547,-500.0,0.00021917,4]
[330803328,1719810647556,-500.26045636,0.00021917,4]
[330803329,1719810647566,-595.57279416,0.00021917,4]
[330803330,1719810647575,-500.0,0.00021917,4]
[330803331,1719810647585,-500.32295345,0.00021917,4]
[330803332,1719810647594,-500.0,0.00021917,4]
[330803333,1719810647603,-500.0,0.00021917,4]
[330803334,1719810647612,-500.47895693,0.00021917,4]
[330803335,1719810647622,-500.0,0.00021917,4]
[330803336,1719810647631,-500.82029762,0.00021917,4]
[330803337,1719810647640,-500.0,0.00021917,4]
[330803338,1719810647650,-500.23401126,0.00021917,4]
[330803339,1719810647659,-500.0,0.00021917,4]
[330803340,1719810647668,-501.12162703,0.00021917,4]
[330803341,1719810647677,-500.0,0.00021917,4]
[330803342,1719810647686,-204.48483351,0.00021917,4]
[330803343,1719810647695,-501.51041463,0.00021917,4]
[330803344,1719810647704,-500.0,0.00021917,4]
[330803345,1719810647713,-500.58447278,0.00021917,4]
[330803346,1719810647722,-500.0,0.00021917,4]
[330803347,1719810647731,-500.67222937,0.00021917,4]
[330803348,1719810647740,-501.2592912,0.00021917,4]
[330803349,1719810647749,-500.0,0.00021917,4]
[330803350,1719810647758,-501.67263354,0.00021917,4]
[330803351,1719810647767,-500.0,0.00021917,4]
[330803352,1719810647776,-500.77256243,0.00021917,4]
[330803353,1719810647786,-500.0,0.00021917,4]
[330803354,1719810647795,-501.37366921,0.00021917,4]
[330803355,1719810647805,-500.0,0.00021917,4]
[330803356,1719810647814,-238.07517548,0.00021917,4]
[330803357,1719810647824,-642.1514479,0.00021917,4]
[330803358,1719810647833,-607.57660901,0.00021917,4]
[330803359,1719810647842,-500.0,0.00021917,4]
[330803360,1719810647851,-501.7651498,0.00021917,4]
[330803361,1719810647862,-500.0,0.00021917,4]
[330803362,1719810647871,-500.0,0.00021917,4]
[330803363,1719810647880,-500.69633581,0.00021917,4]
[330803364,1719810647889,-500.32436461,0.00021917,4]
[330803365,1719810647898,-500.0,0.00021917,4]
[330803366,1719810647907,-500.0,0.00021917,4]
[330803367,1719810647916,-500.0,0.00021917,4]
[330803368,1719810647925,-501.59628054,0.00021917,4]
[330803369,1719810647934,-329.4,0.00021917,4]
[330803370,1719810647943,-501.39110157,0.00021917,4]
[330803371,1719810647953,-500.0,0.00021917,4]
[330803372,1719810647969,-500.0,0.00021917,4]
[330803373,1719810647978,-500.0,0.00021917,4]
[330803374,1719810647988,-500.0,0.00021917,4]
[330803375,1719810647998,-500.0,0.00021917,4]
[330803376,1719810648011,-500.0,0.00021917,4]
[330803377,1719810648020,-500.0,0.00021917,4]
[330803378,1719810648029,-500.0,0.00021917,4]
[330803379,1719810648039,-500.0,0.00021917,4]
[330803380,1719810648048,-500.0,0.00021917,4]
[330803381,1719810648058,-500.0,0.00021917,4]
[330803382,1719810648068,-172.42,0.00021917,4]
[330803383,1719810648077,-501.121777,0.00021917,4]
[330803384,1719810648086,-500.66750054,0.00021917,4]
[330803385,1719810648096,-500.0,0.00021917,4]
[330803386,1719810648105,-500.0,0.00021917,4]
[330803387,1719810648114,-530.07908814,0.00021917,4]
[330803388,1719810648125,-501.18107054,0.00021917,4]
[330803389,1719810648134,-500.0,0.00021917,4]
[330803390,1719810648143,-501.16496236,0.00021917,4]
[330803391,1719810648153,-151.0,0.00021917,2]
[330803392,1719810648163,-152.065809,0.00021917,2]
[330803393,1719810648172,-151.0,0.00021917,2]
[330803394,1719810648181,-156.38871,0.00021917,2]
[330803395,1719810648190,-151.687379,0.00021917,2]
[330803396,1719810648200,-151.0,0.00021917,2]
[330803397,1719810648210,-151.0,0.00021917,2]
[330803398,1719810648219,-151.0,0.00021917,2]
[330803399,1719810648228,-151.0,0.00021917,2]
[330803400,1719810648237,-500.0,0.00021917,4]
[330803401,1719810648247,-500.0,0.00021917,4]
[330803402,1719810648257,-500.0,0.00021917,4]
[330803403,1719810648267,-500.0,0.00021917,4]
[330803404,1719810648276,-500.0,0.00021917,4]
[330803405,1719810648286,-521.738386,0.00021917,4]
[330803406,1719810648295,-543.12861787,0.00021917,4]
[330803407,1719810648304,-347.58452248,0.00021917,4]
[330803408,1719810648313,-500.79718202,0.00021917,4]
[330803409,1719810648322,-500.30424427,0.00021917,4]
[330803410,1719810648332,-500.0,0.00021917,4]
[330803411,1719810648342,-500.0,0.00021917,4]
[330803412,1719810648351,-475.90787282,0.00021917,4]
[330803413,1719810648360,-500.0,0.00021917,4]
[330803414,1719810648369,-500.0,0.00021917,4]
[330803415,1719810648378,-500.0,0.00021917,4]
[330803416,1719810648387,-330.65128366,0.00021917,4]
[330803417,1719810648397,-500.0,0.00021917,4]
[330803418,1719810648406,-476.73787447,0.00021917,4]
[330803419,1719810648415,-500.0,0.00021917,4]
[330803420,1719810648424,-500.0,0.00021917,4]
[330803421,1719810648433,-500.0,0.00021917,4]
[330803422,1719810648442,-500.0,0.00021917,4]
[330803423,1719810648451,-501.57002558,0.00021917,4]
[330803424,1719810648461,-500.0,0.00021917,4]
[330803425,1719810648470,-500.0,0.00021917,4]
[330803426,1719810648479,-500.0,0.00021917,4]
[330803427,1719810648488,-216.68285372,0.00021917,4]
[330803428,1719810648498,-503.52596741,0.00021917,4]
[330803429,1719810648507,-610.83270894,0.00021917,4]
[330803430,1719810648516,-500.0,0.00021917,4]
[330803431,1719810648525,-500.0,0.00021917,4]
[330803432,1719810648535,-500.0,0.00021917,4]
[330803433,1719810648544,-500.0,0.00021917,4]
[330803434,1719810648553,-500.0,0.00021917,4]
[330803435,1719810648562,-500.0,0.00021917,4]
[330803436,1719810648572,-492.59796785,0.00021917,4]
[330803437,1719810648581,-501.31257609,0.00021917,4]
[330803438,1719810648590,-522.42976512,0.00021917,4]
[330803439,1719810648599,-500.71135946,0.00021917,4]
[330803440,1719810648608,-500.0,0.00021917,4]
[330803441,1719810648618,-500.0,0.00021917,4]
[330803442,1719810648627,-500.0,0.00021917,4]
[330803443,1719810648637,-500.0,0.00021917,4]
[330803444,1719810648646,-454.98163202,0.00021917,4]
[330803445,1719810648654,-500.0,0.00021917,4]
[330803446,1719810648663,-428.24669228,0.00021917,4]
[330803447,1719810648673,-151.0,0.00021917,2]
[330803448,1719810648682,-151.0,0.00021917,2]
[330803449,1719810648691,-501.22409939,0.00021917,4]
[330803450,1719810648700,-153.029263,0.00021917,2]
[330803451,1719810648709,-500.0,0.00021917,4]
[330803452,1719810648718,-534.01041471,0.00021917,4]
[330803453,1719810648728,-500.3471559,0.00021917,4]
[330803454,1719810648737,-212.96475933,0.00021917,4]
[330803455,1719810648798,-500.0,0.00021917,4]
[330803456,1719810648808,-500.0,0.00021917,4]
[330803457,1719810648817,-622.24621121,0.00021917,4]
[330803458,1719810648827,-500.0,0.00021917,4]
[330803459,1719810648838,-284.23418121,0.00021917,4]
[330803460,1719810648848,-501.3320749,0.00021917,4]
[330803461,1719810648859,-501.96102906,0.00021917,4]
[330803462,1719810648868,-500.0,0.00021917,4]
[330803463,1719810648877,-500.0,0.00021917,4]
[330803464,1719810648886,-500.0,0.00021917,4]
[330803465,1719810648896,-500.0,0.00021917,4]
[330803466,1719810648905,-356.51022621,0.00021917,4]
[330803467,1719810648914,-500.0,0.00021917,4]
[330803468,1719810648923,-310.2444892,0.00021917,4]
[330803469,1719810648932,-500.0,0.00021917,4]
[330803470,1719810648941,-500.0,0.00021917,4]
[330803471,1719810648950,-500.0,0.00021917,4]
[330803472,1719810648963,-500.0,0.00021917,4]
[330803473,1719810648972,-205.94946291,0.00021917,4]
[330803474,1719810648981,-500.0,0.00021917,4]
[330803475,1719810648990,-502.69603351,0.00021917,4]
[330803476,1719810649001,-470.82106189,0.00021917,4]
[330803477,1719810649011,-500.0,0.00021917,4]
[330803478,1719810649021,-192.2262716,0.00021917,4]
[330803479,1719810649030,-500.74931627,0.00021917,4]
[330803480,1719810649040,-500.0,0.00021917,4]
[330803481,1719810649050,-500.0,0.00021917,4]
[330803482,1719810649061,-500.0,0.00021917,4]
[330803483,1719810649070,-259.68620436,0.00021917,4]
[330803484,1719810649079,-509.4599641,0.00021917,4]
[330803485,1719810649089,-500.0,0.00021917,4]
[330803486,1719810649098,-500.0,0.00021917,4]
[330803487,1719810649107,-500.64723624,0.00021917,4]
[330803488,1719810649117,-517.98107348,0.00021917,4]
[330803489,1719810649126,-500.0,0.00021917,4]
[330803490,1719810649136,-607.14119479,0.00021917,4]
[330803491,1719810649146,-543.0939307,0.00021917,4]
[330803492,1719810649156,-501.37004478,0.00021917,4]
[330803493,1719810649165,-500.41300444,0.00021917,4]
[330803494,1719810649175,-500.0,0.00021917,4]
[330803495,1719810649184,-500.0,0.00021917,4]
[330803496,1719810649194,-501.66659753,0.00021917,4]
[330803497,1719810649203,-500.0,0.00021917,4]
[330803498,1719810649213,-500.0,0.00021917,4]
[330803499,1719810649222,-264.23377133,0.00021917,4]
[330803500,1719810649231,-500.0,0.00021917,4]
[330803501,1719810649240,-502.53473497,0.00021917,4]
[330803502,1719810649250,-277.31647127,0.00021917,4]
[330803503,1719810649259,-500.0,0.00021917,4]
[330803504,1719810649268,-501.71112466,0.00021917,4]
[330803505,1719810649277,-320.0,0.00021917,2]
[330803506,1719810649286,-320.0,0.00021917,2]
[330803507,1719810649296,-320.0,0.00021917,2]
[330803508,1719810649305,-320.0,0.00021917,2]
[330803509,1719810649315,-500.0,0.00021917,4]
[330803510,1719810649325,-500.0,0.00021917,4]
[330803511,1719810649335,-500.0,0.00021917,4]
[330803512,1719810649344,-500.0,0.00021917,4]
[330803513,1719810649353,-482.27628394,0.00021917,4]
[330803514,1719810649363,-500.0,0.00021917,4]
[330803515,1719810649372,-500.0,0.00021917,4]
[330803516,1719810649381,-320.0,0.00021917,2]
[330803517,1719810649390,-500.0,0.00021917,4]
[330803518,1719810649400,-320.0,0.00021917,2]
[330803519,1719810649409,-320.0,0.00021917,2]
[330803520,1719810649418,-548.06534539,0.00021917,4]
[330803521,1719810649428,-320.0,0.00021917,2]
[330803522,1719810649438,-500.40031732,0.00021917,4]
[330803523,1719810649448,-606.41495508,0.00021917,4]
[330803524,1719810649458,-500.0,0.00021917,4]
[330803525,1719810649467,-159.42091197,0.00021917,4]
[330803526,1719810649476,-531.24081035,0.00021917,4]
[330803527,1719810649486,-500.0,0.00021917,4]
[330803528,1719810649495,-500.0,0.00021917,4]
[330803529,1719810649504,-500.0,0.00021917,4]
[330803530,1719810649514,-500.0,0.00021917,4]
[330803531,1719810649523,-500.0,0.00021917,4]
[330803532,1719810649532,-475.89726172,0.00021917,4]
[330803533,1719810649542,-502.08663747,0.00021917,4]
[330803534,1719810649551,-151.0,0.00021917,2]
[330803535,1719810649561,-151.0,0.00021917,2]
[330803536,1719810649570,-151.0,0.00021917,2]
[330803537,1719810649579,-501.22035317,0.00021917,4]
[330803538,1719810649589,-151.0,0.00021917,2]
[330803539,1719810649598,-500.0,0.00021917,4]
[330803540,1719810649607,-500.0,0.00021917,4]
[330803541,1719810649616,-501.9404548,0.00021917,4]
[330803542,1719810649625,-500.0,0.00021917,4]
[330803543,1719810649634,-503.03565815,0.00021917,4]
[330803544,1719810649643,-500.0,0.00021917,4]
[330803545,1719810649652,-501.60925522,0.00021917,4]
[330803546,1719810649662,-500.0,0.00021917,4]
[330803547,1719810649671,-501.55983091,0.00021917,4]
[330803548,1719810649680,-500.0,0.00021917,4]
[330803549,1719810649690,-500.0,0.00021917,4]
[330803550,1719810649699,-500.0,0.00021917,4]
[330803551,1719810649708,-500.0,0.00021917,4]
[330803552,1719810649717,-500.0,0.00021917,4]
[330803553,1719810649727,-345.35751296,0.00021917,4]
[330803554,1719810649736,-500.0,0.00021917,4]
[330803555,1719810649745,-500.0,0.00021917,4]
[330803556,1719810649754,-500.0,0.00021917,4]
[330803557,1719810649765,-242.21348809,0.00021917,4]
[330803558,1719810649774,-500.0,0.00021917,4]
[330803559,1719810649784,-500.0,0.00021917,4]
[330803560,1719810649793,-500.0,0.00021917,4]
[330803561,1719810649802,-501.43482218,0.00021917,4]
[330803562,1719810649812,-500.0,0.00021917,4]
[330803563,1719810649821,-500.0,0.00021917,4]
[330803564,1719810649831,-374.82849158,0.00021917,4]
[330803565,1719810649840,-501.62193205,0.00021917,4]
[330803566,1719810649850,-500.0,0.00021917,4]
[330803567,1719810649860,-500.0,0.00021917,4]
[330803568,1719810649870,-500.0,0.00021917,4]
[330803569,1719810649880,-500.0,0.00021917,4]
[330803570,1719810649889,-583.40029952,0.00021917,4]
[330803571,1719810649899,-500.0,0.00021917,4]
[330803572,1719810649908,-500.0,0.00021917,4]
[330803573,1719810649917,-500.0,0.00021917,4]
[330803574,1719810649927,-500.0,0.00021917,4]
[330803575,1719810649938,-500.0,0.00021917,4]
[330803576,1719810649948,-500.0,0.00021917,4]
[330803577,1719810649959,-222.45,0.00021917,4]
[330803578,1719810649971,-500.0,0.00021917,4]
[330803579,1719810649980,-610.66920791,0.00021917,4]
[330803580,1719810649990,-151.0,0.00021917,2]
[330803581,1719810650000,-151.0,0.00021917,2]
[330803582,1719810650012,-151.0,0.00021917,2]
[330803583,1719810650021,-500.0,0.00021917,4]
[330803584,1719810650032,-151.0,0.00021917,2]
[330803585,1719810650042,-501.65850554,0.00021917,4]
[330803586,1719810650052,-500.0,0.00021917,4]
[330803587,1719810650061,-500.0,0.00021917,4]
[330803588,1719810650070,-500.0,0.00021917,4]
[330803589,1719810650080,-347.8313536,0.00021917,4]
[330803590,1719810650089,-500.0,0.00021917,4]
[330803591,1719810650098,-500.0,0.00021917,4]
[330803592,1719810650108,-203.77364012,0.00021917,4]
[330803593,1719810650118,-500.0,0.00021917,4]
[330803594,1719810650128,-500.27804343,0.00021917,4]
[330803595,1719810650137,-151.0,0.00021917,2]
[330803596,1719810650146,-151.0,0.00021917,2]
[330803597,1719810650156,-151.0,0.00021917,2]
[330803598,1719810650166,-152.338468,0.00021917,2]
[330803599,1719810650175,-500.0,0.00021917,4]
[330803600,1719810650184,-500.0,0.00021917,4]
[330803601,1719810650193,-500.4063258,0.00021917,4]
[330803602,1719810650203,-500.0,0.00021917,4]
[330803603,1719810650213,-241.66809978,0.00021917,4]
[330803604,1719810650222,-354.75805273,0.00021917,4]
[330803605,1719810650232,-500.0,0.00021917,4]
[330803606,1719810650242,-196.65222691,0.00021917,4]
[330803607,1719810650251,-500.0,0.00021917,4]
[330803608,1719810650262,-500.0,0.00021917,4]
[330803609,1719810650272,-501.32645226,0.00021917,4]
[330803610,1719810650282,-500.0,0.00021917,4]
[330803611,1719810650294,-500.0,0.00021917,4]
[330803612,1719810650304,-500.0,0.00021917,4]
[330803613,1719810650314,-317.16235017,0.00021917,4]
[330803614,1719810650323,-544.22237226,0.00021917,4]
[330803615,1719810650333,-306.59836651,0.00021917,4]
[330803616,1719810650342,-500.0,0.00021917,4]
[330803617,1719810650351,-500.53422241,0.00021917,4]
[330803618,1719810650361,-500.0,0.00021917,4]
[330803619,1719810650371,-501.40040163,0.00021917,4]
[330803620,1719810650380,-500.0,0.00021917,4]
[330803621,1719810650390,-500.0,0.00021917,4]
[330803622,1719810650399,-500.0,0.00021917,4]
[330803623,1719810650409,-500.0,0.00021917,4]
[330803624,1719810650419,-351.56683175,0.00021917,4]
[330803625,1719810650428,-151.0,0.00021917,2]
[330803626,1719810650438,-500.0,0.00021917,4]
[330803627,1719810650447,-151.0,0.00021917,2]
[330803628,1719810650456,-486.91937013,0.00021917,4]
[330803629,1719810650466,-503.30551422,0.00021917,4]
[330803630,1719810650475,-151.0,0.00021917,2]
[330803631,1719810650484,-151.0,0.00021917,2]
[330803632,1719810650494,-151.0,0.00021917,2]
[330803633,1719810650504,-151.0,0.00021917,2]
[330803634,1719810650515,-151.0,0.00021917,2]
[330803635,1719810650525,-500.0,0.00021917,4]
[330803636,1719810650533,-279.016037,0.00021917,2]
[330803637,1719810650541,-500.0,0.00021917,4]
[330803638,1719810650551,-231.0797542,0.00021917,4]
[330803639,1719810650560,-500.0,0.00021917,4]
[330803640,1719810650570,-500.0,0.00021917,4]
[330803641,1719810650579,-500.0,0.00021917,4]
[330803642,1719810650588,-500.0,0.00021917,4]
[330803643,1719810650597,-500.0,0.00021917,4]
[330803644,1719810650605,-500.0,0.00021917,4]
[330803645,1719810650614,-196.22490033,0.00021917,4]
[330803646,1719810650623,-500.0,0.00021917,4]
[330803647,1719810650633,-500.0,0.00021917,4]
[330803648,1719810650642,-161.32219724,0.00021917,4]
[330803649,1719810650651,-500.0,0.00021917,4]
[330803650,1719810650660,-363.83742727,0.00021917,4]
[330803651,1719810650669,-500.0,0.00021917,4]
[330803652,1719810650678,-500.97040721,0.00021917,4]
[330803653,1719810650687,-151.0,0.00021917,2]
[330803654,1719810650696,-500.0,0.00021917,4]
[330803655,1719810650705,-500.65798036,0.00021917,4]
[330803656,1719810650714,-151.0,0.00021917,2]
[330803657,1719810650724,-500.0,0.00021917,4]
[330803658,1719810650733,-394.9078167,0.00021917,4]
[330803659,1719810650742,-151.0,0.00021917,2]
[330803660,1719810650751,-500.0,0.00021917,4]
[330803661,1719810650761,-151.0,0.00021917,2]
[330803662,1719810650770,-500.0,0.00021917,4]
[330803663,1719810650779,-262.47715341,0.00021917,4]
[330803664,1719810650788,-500.0,0.00021917,4]
[330803665,1719810650797,-500.49105358,0.00021917,4]
[330803666,1719810650806,-500.0,0.00021917,4]
[330803667,1719810650815,-500.0,0.00021917,4]
[330803668,1719810650824,-500.0,0.00021917,4]
[330803669,1719810650833,-501.34,0.00021917,4]
[330803670,1719810650842,-525.58310475,0.00021917,4]
[330803671,1719810650851,-171.99453445,0.00021917,4]
[330803672,1719810650861,-500.0,0.00021917,4]
[330803673,1719810650870,-500.0,0.00021917,4]
[330803674,1719810650880,-500.0,0.00021917,4]
[330803675,1719810650890,-502.77831244,0.00021917,4]
[330803676,1719810650899,-500.0,0.00021917,4]
[330803677,1719810650909,-628.13058849,0.00021917,4]
[330803678,1719810650919,-573.35267324,0.00021917,4]
[330803679,1719810650928,-151.0,0.00021917,2]
[330803680,1719810650938,-151.0,0.00021917,2]
[330803681,1719810650947,-151.0,0.00021917,2]
[330803682,1719810650959,-151.0,0.00021917,2]
[330803683,1719810650969,-500.83255269,0.00021917,4]
[330803684,1719810650979,-500.0,0.00021917,4]
[330803685,1719810650989,-151.0,0.00021917,2]
[330803686,1719810651001,-502.64433807,0.00021917,4]
[330803687,1719810651012,-151.0,0.00021917,2]
[330803688,1719810651021,-151.0,0.00021917,2]
[330803689,1719810651031,-151.0,0.00021917,2]
[330803690,1719810651043,-500.0,0.00021917,4]
[330803691,1719810651052,-500.0,0.00021917,4]
[330803692,1719810651062,-500.0,0.00021917,4]
[330803693,1719810651072,-501.22174418,0.00021917,4]
[330803694,1719810651081,-390.13213686,0.00021917,4]
[330803695,1719810651091,-500.0,0.00021917,4]
[330803696,1719810651100,-501.55488866,0.00021917,4]
[330803697,1719810651110,-502.62073978,0.00021917,4]
[330803698,1719810651120,-500.35115385,0.00021917,4]
[330803699,1719810651129,-502.3008836,0.00021917,4]
[330803700,1719810651139,-500.0,0.00021917,4]
[330803701,1719810651148,-500.0,0.00021917,4]
[330803702,1719810651157,-500.0,0.00021917,4]
[330803703,1719810651167,-501.30225191,0.00021917,4]
[330803704,1719810651177,-641.26695281,0.00021917,4]
[330803705,1719810651186,-500.0,0.00021917,4]
[330803706,1719810651196,-500.0,0.00021917,4]
[330803707,1719810651205,-501.71677775,0.00021917,4]
[330803708,1719810651215,-500.0,0.00021917,4]
[330803709,1719810651224,-500.0,0.00021917,4]
[330803710,1719810651234,-500.0,0.00021917,4]
[330803711,1719810651243,-500.0,0.00021917,4]
[330803712,1719810651253,-500.0,0.00021917,4]
[330803713,1719810651262,-151.701924,0.00021917,2]
[330803714,1719810651272,-500.0,0.00021917,4]
[330803715,1719810651281,-500.0,0.00021917,4]
[330803716,1719810651291,-184.81880496,0.00021917,4]
[330803717,1719810651300,-500.0,0.00021917,4]
[330803718,1719810651312,-500.0,0.00021917,4]
[330803719,1719810651322,-500.0,0.00021917,4]
[330803720,1719810651333,-500.30365663,0.00021917,4]
[330803721,1719810651342,-500.0,0.00021917,4]
[330803722,1719810651352,-500.0,0.00021917,4]
[330803723,1719810651362,-500.0,0.00021917,4]
[330803724,1719810651372,-500.0,0.00021917,4]
[330803725,1719810651382,-500.0,0.00021917,4]
[330803726,1719810651392,-422.936565,0.00021917,4]
[330803727,1719810651402,-501.05048399,0.00021917,4]
[330803728,1719810651411,-541.49020784,0.00021917,4]
[330803729,1719810651421,-501.76100213,0.00021917,4]
[330803730,1719810651430,-184.89121698,0.00021917,4]
[330803731,1719810651440,-500.0,0.00021917,4]
[330803732,1719810651449,-500.56688857,0.00021917,4]
[330803733,1719810651459,-500.0,0.00021917,4]
[330803734,1719810651468,-176.81476849,0.00021917,4]
[330803735,1719810651478,-311.03361655,0.00021917,4]
[330803736,1719810651487,-500.0,0.00021917,4]
[330803737,1719810651498,-443.31323575,0.00021917,4]